Cogmind - Beta 16 --- EXPLORER MODE // 2026.01.29 @ 09:49:22 Player: K.K.Y. Result: Destroyed by as-51867 with Assembled Blade Performance ------------- Evolutions (0) 0 Regions Visited (2) 400 Robots Destroyed (21) 105 Value Destroyed (377) 377 Prototype IDs (0) 0 Alien Tech Used (0) 0 Bonus (0) 0 TOTAL SCORE: 882 Bonus ------- None Cogmind --------- Core Integrity 0/250 Matter 285/300 Energy 16/100 System Corruption 1% Temperature Cool (7) Movement Core (500) Ox9 Location -10/Mines Parts ------- > --- POWER (1) -------- (None) > --- PROPULSION (2) --- (None) > --- UTILITY (3) ------ Cooling System Large Storage Unit > --- WEAPON (2) ------- Spread Laser Spread Laser > --- INVENTORY (15) --- Ion Engine Light Treads Light Treads High-capacity Storage Unit Huge Storage Unit Sensor Array Improved Terrain Scanner Medium Laser Small Laser Spread Laser Beam Cannon Mining Laser Peak State ------------ > --- POWER ------------ Ion Engine > --- PROPULSION ------- Light Treads Light Treads > --- UTILITY ---------- Cooling System Large Storage Unit Structural Scanner > --- WEAPON ----------- Spread Laser Spread Laser > --- INVENTORY -------- Ion Engine Light Treads Light Treads High-capacity Storage Unit Huge Storage Unit Sensor Array Improved Terrain Scanner Medium Laser Small Laser Spread Laser Spread Laser Beam Cannon Mining Laser [Rating: 12] Favorites ----------- Power Ion Engine Engine Ion Engine Propulsion Light Treads Treads Light Treads Utility Structural Scanner Device Structural Scanner Storage Large Storage Unit Weapon Medium Laser Energy Gun Medium Laser Special Weapon Mining Laser Build | -11 -10 -10 ------- Run | Yrd Mat Min Slots Evolved 1 | . 1 . Power . | . . . Propulsion . | . . . Utility 1 | . 1 . Weapon . | . . . Parts Attached 15 | 7 4 4 Power 1 | 1 . . Engine 1 | 1 . . Core . | . . . Reactor . | . . . Propulsion 3 | 2 1 . Treads 3 | 2 1 . Leg . | . . . Wheel . | . . . Hover . | . . . Flight . | . . . Utility 5 | 2 2 1 Device 3 | 1 1 1 Storage 2 | 1 1 . Processor . | . . . Hackware . | . . . Protection . | . . . Artifact . | . . . Weapon 6 | 2 1 3 Energy Gun 5 | 2 . 3 Energy Cannon . | . . . Ballistic Gun . | . . . Ballistic Cannon . | . . . Launcher . | . . . Special Weapon 1 | . 1 . Impact Weapon . | . . . Slashing Weapon . | . . . Piercing Weapon . | . . . Special Melee Weapon . | . . . Unidentified Prototypes . | . . . Parts Lost 6 | . . 6 Power 1 | . . 1 Propulsion 2 | . . 2 Utility 2 | . . 2 Weapon 1 | . . 1 Highest Loss Streak 6 | . . 6 To Critical Strikes . | . . . Average Backups 6 | 1 6 13 Power . | . . 1 Propulsion . | . . 2 Utility 2 | . 2 4 Weapon 2 | . 2 5 Tool/Special . | . . . Unused Backups 8 | . . 8 Power 1 | . . 1 Propulsion 1 | . . 1 Utility 4 | . . 4 Weapon 2 | . . 2 Tool/Special . | . . . Average Slot Usage (%) 89 | . 89 95 Engine 11 | . 11 10 Treads 24 | . 24 23 Device 16 | . 15 23 Storage 12 | . 12 12 Energy Gun 24 | . 24 25 Peak Build Rating 12 | 7 10 12 Average Rating 7 | 5 7 9 On Entrance 5 | . 7 10 Avg Prop Armor Cover (%) . | . . . Naked Turns . | . . . Heaviest Build 30 | 19 30 30 Greatest Support 40 | 40 40 40 Greatest Overweight (x) 1 | . 1 . Average Overweight (x) . | . . . Largest Inventory Capacity 15 | 10 15 15 Average Capacity 14 | 9 14 15 Most Carried 14 | 5 14 14 Average Carried 6 | 1 6 13 Final Capacity 15 | 10 15 15 Final Carried 14 | 2 14 12 Class Distribution -------------------- 100% | Hacker-Mutant Dominant Class ---------------- Hacker-Mutant | -10/Materials Hacker-Mutant | -10/Mines Resources | -11 -10 -10 ----------- Run | Yrd Mat Min Matter Collected 330 | 270 30 30 Remotely . | . . . Salvage Created 727 | 146 556 25 Parts 41 | 13 28 . Haulers Intercepted 2 | . 2 . Recyclers Shooed 1 | . 1 . Parts Field Recycled . | . . . Retrieved Matter . | . . . Parts Self-Destructed . | . . . Prevented . | . . . Parts Restored . | . . . Kills | -11 -10 -10 ------- Run | Yrd Mat Min Combat Hostiles Destroyed 18 | . 11 7 Guns 18 | . 11 7 Classes Destroyed 7 | 2 4 1 Tunneler 4 | 4 . . Hauler 2 | . 2 . Recycler 2 | 1 1 . Watcher 2 | . 2 . Swarmer 4 | . 4 . Grunt 7 | . 7 . Assembled 7 | . . 7 Best Kill Streak 7 | 4 4 7 Combat Bots Only 7 | . 4 7 Max Kills in Single Turn 2 | 1 1 2 Gunslinging 1 | . . 1 Exploded . | . . . Melee . | . . . Uniques/NPCs Destroyed . | . . . Combat | -11 -10 -10 -------- Run | Yrd Mat Min Hostile Shots Fired 117 | . 42 75 Missed 25 | . 10 15 Hits 92 | . 32 60 Melee 18 | . . 18 Projectile 74 | . 32 42 AOE 9 | . . 9 Critical Strikes 2 | . . 2 Part Disruptions 1 | . . 1 Damage Taken 986 | . 192 794 Core 261 | . 20 241 Absorbed by Shields . | . . . Ignored by Resistances 598 | . 129 469 Core Remaining (%) 100 | 100 . . Volleys Fired 67 | 11 46 10 Largest 2 | 2 2 2 Hottest 150 | 90 150 130 Shots Fired 126 | 22 88 16 Gun 125 | 22 87 16 Cannon . | . . . Launcher . | . . . Special 1 | . 1 . Kinetic . | . . . Thermal 126 | 22 88 16 Explosive . | . . . Electromagnetic . | . . . Robot Hit Streak 22 | 4 22 21 Robot Miss Streak 4 | 1 4 1 Penetration Max . | . . . Secondary Targets 4 | . 3 1 Max Gunslinging Chain 1 | . 1 1 Shots Hit Robots 93 | 15 63 15 Core Hits 54 | 6 28 20 Critical Kills . | . . . Critical Parts Destroyed . | . . . Critical Strikes 3 | . 2 1 Burn 3 | . 2 1 Melee Attacks . | . . . Impact . | . . . Slashing . | . . . Piercing . | . . . Sneak Attacks . | . . . Combat Hostiles . | . . . Follow-up Attacks . | . . . Damage Inflicted 1155 | 178 753 224 Guns 1155 | 178 753 224 Cannons . | . . . Explosions . | . . . Melee . | . . . Ramming . | . . . Kinetic . | . . . Thermal 1155 | 178 753 224 Explosive . | . . . Electromagnetic . | . . . Impact . | . . . Slashing . | . . . Piercing . | . . . Highest Corruption 1 | . 1 1 Average Corruption 1 | . 1 1 Corruption Purged . | . . . Corruption Blocked . | . . . Effects 2 | . 2 . Heat Flow Errors 2 | . 2 . Overload Shots . | . . . Overflow Damage . | . . . Projectiles . | . . . Explosions . | . . . Melee . | . . . Knockbacks . | . . . Impact . | . . . Kinetic . | . . . Secondary . | . . . Self-Inflicted Damage . | . . . Shots . | . . . Rammed . | . . . Targets Rammed . | . . . Kicked . | . . . Crushed . | . . . Highest Temperature 270 | 150 270 110 Average Temperature 77 | 75 82 50 Received Heat Transfer 351 | . 111 240 Effects 1 | . 1 . Energy Bleed 1 | . 1 . Siege Activations . | . . . Martial Activations . | . . . Shielding Activations . | . . . Robots Disrupted . | . . . Combat Hostiles . | . . . Robots Corrupted . | . . . Combat Hostiles . | . . . Parts Fried . | . . . Impact Corruptions . | . . . Robots Melted 1 | . 1 . Combat Hostiles . | . . . Parts Melted 4 | 2 2 . Heat Transferred 3118 | 483 2143 492 Parts Sabotaged . | . . . Parts Stolen . | . . . Parts Stripped . | . . . Power Chain Reactions . | . . . Alert | -11 -10 -10 ------- Run | Yrd Mat Min Maximum Alert Level . | . . . Low Security (%) 100 | 100 100 100 Level 1 . | . . . Level 2 . | . . . Level 3 . | . . . Level 4 . | . . . Level 5 . | . . . High Security . | . . . Max Security . | . . . Peak Influence 60 | 15 60 . Initial . | . . . Average 5 | 2 5 . Influence Increases 324 | 25 299 . Destroy 0b10 Robot/C 220 | . 220 . Destroy 0b10 Robot/NC 50 | 25 25 . Destroy Leader 48 | . 48 . Successful Hack 2 | . 2 . Disable Machine 4 | . 4 . Influence Decreases 324 | 25 299 . Time Decay 324 | 25 299 . Squads Dispatched 1 | . 1 . Investigation 1 | . 1 . Extermination . | . . . Reinforcement . | . . . Assault . | . . . Garrison . | . . . Intercept . | . . . Searches Triggered . | . . . Construction Impeded . | . . . Haulers Reinforced . | . . . Active Scanning Responses . | . . . Cargo Convoy Interrupts . | . . . Stealth | -11 -10 -10 --------- Run | Yrd Mat Min Distress Signals . | . . . Communications Jammed . | . . . Distress Signals . | . . . Times Spotted 39 | . 16 23 Peak Tracking Total 13 | . 3 13 Tactical Retreats . | . . . Traps | -11 -10 -10 ------- Run | Yrd Mat Min Traps Triggered 2 | . 2 . Indirectly . | . . . Trap Hack Attempts . | . . . Triggered . | . . . Disarmed . | . . . Reprogrammed . | . . . Reused . | . . . Traps Extracted . | . . . Installed . | . . . Triggered . | . . . Machines | -11 -10 -10 ---------- Run | Yrd Mat Min Machines Disabled 1 | . 1 . Max in Single Turn 1 | . 1 . Machines Repaired . | . . . Machines Dismantled . | . . . Machines Sabotaged . | . . . Overloaded Fab Kills . | . . . Hacking | -11 -10 -10 --------- Run | Yrd Mat Min Machines Accessed 3 | . 3 . Terminals 1 | . 1 . Fabricators . | . . . Repair Stations . | . . . Recycling Units 2 | . 2 . Scanalyzers . | . . . Garrison Access . | . . . Total Hacks 7 | . 7 . Successful 3 | . 3 . Failed 4 | . 4 . Catastrophic . | . . . Database Lockouts . | . . . Manual . | . . . Terminals 2 | . 2 . Fabricators . | . . . Repair Stations . | . . . Recycling Units 5 | . 5 . Scanalyzers . | . . . Garrison Access . | . . . Terminal Hacks 1 | . 1 . Robot Analysis 1 | . 1 . Fabricator Hacks . | . . . Repair Station Hacks . | . . . Recycling Unit Hacks 2 | . 2 . Retrieve Components 2 | . 2 . Scanalyzer . | . . . Garrison Access Hacks . | . . . Unauthorized Hacks . | . . . Terminals . | . . . Fabricators . | . . . Repair Stations . | . . . Recycling Units . | . . . Scanalyzers . | . . . Garrison Access . | . . . Data Cores Recovered . | . . . Used . | . . . Hacking Detections 2 | . 2 . Full Trace Events 1 | . 1 . Feedback Events . | . . . Feedback Blocked . | . . . Robot Schematics Acquired . | . . . Robots Built . | . . . Authchips . | . . . Time . | . . . Total Robot Build Rating . | . . . Part Schematics Acquired . | . . . Parts Built . | . . . Authchips . | . . . Time . | . . . Total Part Build Rating . | . . . Part Studies Acquired . | . . . Parts Repaired . | . . . Time . | . . . Parts Recycled . | . . . Recycled Matter . | . . . Retrieved Matter . | . . . Retrieved Components 12 | . 12 . Parts Scanalyzed . | . . . Part Schematics Acquired . | . . . Parts Damaged . | . . . Bothacking | -11 -10 -10 ------------ Run | Yrd Mat Min Used RIF Installer . | . . . Robots Hacked . | . . . Non-combat . | . . . Combat . | . . . Robot Hacks Applied . | . . . Relay Couplers Released . | . . . Fabnet Peak Effective % . | . . . Robots Rewired . | . . . Allies Hacked . | . . . Hacks Repelled . | . . . Allies | -11 -10 -10 -------- Run | Yrd Mat Min Total Allies . | . . . Largest Group . | . . . Highest-Rated Group . | . . . Highest-Rated Ally . | . . . Total Orders . | . . . Ally Attacks . | . . . Total Damage . | . . . Kills . | . . . Allies Corrupted . | . . . Allies Melted . | . . . Intel | -11 -10 -10 ------- Run | Yrd Mat Min Active Infowar (turns) 1944 | 79 1702 163 Sensors 615 | . 468 147 Structural 1944 | 79 1702 163 Robot Analysis Total 1 | . 1 . Derelict Logs Recovered . | . . . Drone Launches . | . . . Drone Recoveries . | . . . Exploration | -11 -10 -10 ------------- Run | Yrd Mat Min Turns Passed 1969 | 99 1702 168 Spaces Moved 694 | 45 564 85 Core 18 | 18 . . Treads 676 | 27 564 85 Legs . | . . . Wheels . | . . . Hover . | . . . Flight . | . . . Fastest Speed 50 | 50 160 160 Average Speed 161 | 116 165 160 Slowest Speed 240 | 160 240 160 Overloaded Moves . | . . . Propulsion Burnouts . | . . . Robots Hopped . | . . . Potential Cave-ins . | . . . Cave-ins Triggered . | . . . Exploration Rate (%) 42 | 4 98 24 Regions Visited 2 Branch Regions 1 Pre-discovered Areas 1 | . . 1 Known Exits Taken 2 | 1 1 . Unknown Exits Taken . | . . . Scrap Searched . | . . . Spaces Dug . | . . . Terrain Destroyed . | . . . Melee . | . . . Projectile . | . . . AOE . | . . . Terrain Rammed . | . . . Walls Destroyed . | . . . Machines Disabled . | . . . Actions | -11 -10 -10 --------- Run | Yrd Mat Min Total 1413 | 69 1244 100 Wait 613 | . 612 1 Move 692 | 44 563 85 Hop . | . . . Pick Up 23 | 7 16 . Fast Attach 2 | 2 . . Attach 11 | 5 4 2 Detach . | . . . Swap 4 | . 2 2 Drop 1 | . 1 . Fire 67 | 11 46 10 Melee . | . . . Ram . | . . . Kick . | . . . Crush . | . . . Escape Stasis . | . . . Rewire . | . . . Trap . | . . . Miscellaneous . | . . . Route ------- -11/Scrapyard -10/Materials (discovered 6 exits: *Mat x3 / *Min x2 / Sub) -10/Mines History --------- Turn | Location | Event 6 | -11/Scrapyard | Identified exit to Materials 6 | -11/Scrapyard | Discovered exit to Materials (range 15) 100 | -11/Scrapyard | Entered Materials 100 | -10/Materials | Evolved 1 slot: Utility x1 148 | -10/Materials | Identified exit to Mines 148 | -10/Materials | Discovered exit to Mines (range 5) 310 | -10/Materials | Build established: Hacker-Mutant 1304 | -10/Materials | Identified exit to Subcaves 1304 | -10/Materials | Discovered exit to Subcaves (range 10) 1304 | -10/Materials | Identified exit to Materials 1304 | -10/Materials | Discovered exit to Materials (range 6) 1359 | -10/Materials | Discovered exit to Mines (range 16) 1601 | -10/Materials | Discovered exit to Materials (range 15) 1701 | -10/Materials | Discovered exit to Materials (range 8) 1802 | -10/Materials | Entered Mines 1803 | -10/Mines | Learned location of Storage (-9) 1822 | -10/Mines | Met a Derelict bent on vengeance 1852 | -10/Mines | Found a hidden stash of uninstalled traps 1867 | -10/Mines | Assembled infested the area 1956 | -10/Mines | Core integrity fell below 50% 1966 | -10/Mines | Core integrity fell below 20% 1970 | -10/Mines | Destroyed by as-51867 with Assembled Blade Last Messages --------------- 01929_ as-16122 destroyed. 01933_ The unstable cave ceiling collapses. 01933_ as-00837 destroyed. 01934_ The unstable cave ceiling collapses. 01944_ Destroyed Asb. Hover Unit. 01944_ as-21329 suffers critical hit (Burn). 01944_ as-21329 destroyed. 01947_ as-78363 destroyed. 01947_ Switching to secondary target: as-18498. 01947_ as-18498 destroyed. 01949_ Sensor Array destroyed. 01957_ as-27732 destroyed. 01957_ as-30291 destroyed. 01958_ Ion Engine destroyed. 01960_ Lgt. Treads destroyed. 01961_ as-74856 destroyed. 01965_ Lgt. Treads destroyed. 01965_ Spread Laser destroyed. 01965_ Structural Scanner destroyed. 01966_ as-31699 destroyed. Map ----- +----------------------------------------------------+ | ????????????????????????????? | | ?????????????????????????????? | | ?????????????????????????????? | | ?????????????????????????????# | | ?????????????????????????????## | | ?????????????????????????????## | | ?????????????????????????????## | | ???????????????????????## ##### | | ???????????????????????## ##### | | ???????????????????????## | | ???????????????????????######## | | ???????????????????????######## | | ????????????????????????????### | | ???????????????????????????#### | | ??????????????????????????#### | | ?????????????????????????#### | | ????????????????????????#### | | ???????????## ???????######& | | ???????????## ############& & # | | ???????????## ######### & # | | ???????????## ## | | ??????????### #### | | ????????########## ### ##### | | ???######### ## ### ###?? | | ??######## ## ###??? | | ??### @### # # ## ####??? | | ??## a %# ### ###???? | | ??## a ### ##????? | | ??## a # ## ##????? | | ??## a a ## ##????? | | ??## % ## ## ##????? | | ??## ### # ## ##????? | | ??### ## ##????? | | ??#### ##????? | | ???####a% ## #######????? | | ????### ############????? | | ?????### # # #######?????????? | | ?????#### # ####??????????????? | | ??????? # ##????????????????? | | ????????? #????????????????? | | ?????????? ?????????????????? | | ?????????? ?????????????????? | | ?????????? ?????????????????? | | ??????????????????????????????? | | ??????????????????????????????? | | ??????????????????????????????? | | ??????????????????????????????? | | ??????????????????????????????? | | | | | +----------------------------------------------------+ Best States ------------- Heat Dissipation 47 Energy Generation 10 Energy Capacity 250 Matter Stores 300 Matter Capacity 300 Sight Range 16 Robot Scan Range 14 Terrain Scan Density 10 Resistance: KI 35 Resistance: TH 35 Resistance: EX 35 Resistance: EM 35 Resistance: I 35 Resistance: S 35 Resistance: P 35 Evasion (%) 50 Recoil Reduction 2 Offensive Hacking 20 Item Schematics ----------------- None Robot Schematics ------------------ None Fabricated ------------ Nothing Repaired ---------- Nothing Studied --------- None Alien Tech Used ----------------- None Achievements -------------- None Challenges ------------ None Game ------ Seed AlloyBladeSpiker Manual? 0 Play Time 00:09:29 Cumulative 320.8 hours Start 2026.01.29 @ 09:41:37 End 2026.01.29 @ 09:49:22 Sessions 1 Manual Loads 0 Difficulty Explorer Special Mode None Game No. 502 Rogue 0 Adventurer 0 Explorer 502 Win Type - Total 0 Types 0/0/0/0/0/0/0/0/0/0 Lore% 77 Gallery% 70 Achievement% 56 Wizard Run 0 Options --------- Layout 1 ASCII 0 Keyboard 0 Movement Mouse Keybinds 1 Fullscreen 1 Font 24/Smallcaps Map View 50x35 Zoom Use 0% Tactical HUD 1 Map Filters NONE Filters NONE Steam 1 RUN: c790feed-1ff4-4d9e-8d68-03ca6415d397